[Event "Titled Tuesday Blitz August 16 Late 2022"]
[White "Bartholomew, John"]
[Black "Oro, Luis"]
[WhiteFideId "2019353"]
[BlackFideId "104094"]
[WhiteElo "2446"]
[BlackElo "2255"]
[Result "1-0"]
[Round "01"]
[TimeControl "180+1"]
[Date "2022.08.18"]
[WhiteClock "0:00:00"]
[BlackClock "0:00:00"]

1. d4 {[%clk 0:00:00]}  Nf6 {[%clk 0:00:00]} 2. c4 {[%clk 0:00:00]}  e6 {[%clk 0:00:00]} 3. Nf3 {[%clk 0:00:00]}  b6 {[%clk 0:00:00]} 4. g3 {[%clk 0:00:00]}  Bb7 {[%clk 0:00:00]} 5. Bg2 {[%clk 0:00:00]}  Be7 {[%clk 0:00:00]} 6. O-O {[%clk 0:00:00]}  O-O {[%clk 0:00:00]} 7. Nc3 {[%clk 0:00:00]}  Ne4 {[%clk 0:00:00]} 8. Bd2 {[%clk 0:00:00]}  c5 {[%clk 0:00:00]} 9. d5 {[%clk 0:00:00]}  Nxc3 {[%clk 0:00:00]} 10. Bxc3 {[%clk 0:00:00]}  exd5 {[%clk 0:00:00]} 11. Nd2 {[%clk 0:00:00]}  Bf6 {[%clk 0:00:00]} 12. cxd5 {[%clk 0:00:00]}  d6 {[%clk 0:00:00]} 13. Ne4 {[%clk 0:00:00]}  Bxc3 {[%clk 0:00:00]} 14. bxc3 {[%clk 0:00:00]}  Qe7 {[%clk 0:00:00]} 15. c4 {[%clk 0:00:00]}  Nd7 {[%clk 0:00:00]} 16. a4 {[%clk 0:00:00]}  Ba6 {[%clk 0:00:00]} 17. Rc1 {[%clk 0:00:00]}  Ne5 {[%clk 0:00:00]} 18. Qb3 {[%clk 0:00:00]}  Rab8 {[%clk 0:00:00]} 19. Nd2 {[%clk 0:00:00]}  f5 {[%clk 0:00:00]} 20. f4 {[%clk 0:00:00]}  Ng4 {[%clk 0:00:00]} 21. e4 {[%clk 0:00:00]}  Qf6 {[%clk 0:00:00]} 22. Qc3 {[%clk 0:00:00]}  Rbe8 {[%clk 0:00:00]} 23. Rfe1 {[%clk 0:00:00]}  fxe4 {[%clk 0:00:00]} 24. Nxe4 {[%clk 0:00:00]}  Qxc3 {[%clk 0:00:00]} 25. Rxc3 {[%clk 0:00:00]}  Re7 {[%clk 0:00:00]} 26. Nf6+ {[%clk 0:00:00]}  Nxf6 {[%clk 0:00:00]} 27. Rxe7 {[%clk 0:00:00]}  Rf7 {[%clk 0:00:00]} 28. Re6 {[%clk 0:00:00]}  Rd7 {[%clk 0:00:00]} 29. Bh3 {[%clk 0:00:00]}  Rd8 {[%clk 0:00:00]} 30. Re7 {[%clk 0:00:00]}  h6 {[%clk 0:00:00]} 31. Rxa7 {[%clk 0:00:00]}  Bc8 {[%clk 0:00:00]} 32. Ra8 {[%clk 0:00:00]} 1-0


[Site "https://www.chess.com"]

[Event "Titled Tuesday Blitz August 16 Late 2022"]
[White "Bellissimo, Joseph F."]
[Black "Bilych, Olexiy"]
[WhiteFideId "2609843"]
[BlackFideId "14156504"]
[WhiteElo "2061"]
[BlackElo "2157"]
[Result "0-1"]
[Round "01"]
[TimeControl "180+1"]
[Date "2022.08.18"]
[WhiteClock "0:00:00"]
[BlackClock "0:00:00"]

1. e4 {[%clk 0:00:00]}  e5 {[%clk 0:00:00]} 2. Nf3 {[%clk 0:00:00]}  Nc6 {[%clk 0:00:00]} 3. Bc4 {[%clk 0:00:00]}  Bc5 {[%clk 0:00:00]} 4. c3 {[%clk 0:00:00]}  Nf6 {[%clk 0:00:00]} 5. d3 {[%clk 0:00:00]}  d6 {[%clk 0:00:00]} 6. Bb3 {[%clk 0:00:00]}  a5 {[%clk 0:00:00]} 7. Nbd2 {[%clk 0:00:00]}  O-O {[%clk 0:00:00]} 8. h3 {[%clk 0:00:00]}  Be6 {[%clk 0:00:00]} 9. Bc2 {[%clk 0:00:00]}  d5 {[%clk 0:00:00]} 10. O-O {[%clk 0:00:00]}  dxe4 {[%clk 0:00:00]} 11. dxe4 {[%clk 0:00:00]}  Qe7 {[%clk 0:00:00]} 12. Qe2 {[%clk 0:00:00]}  Nd7 {[%clk 0:00:00]} 13. Re1 {[%clk 0:00:00]}  Nb6 {[%clk 0:00:00]} 14. b3 {[%clk 0:00:00]}  Rfd8 {[%clk 0:00:00]} 15. Nf1 {[%clk 0:00:00]}  a4 {[%clk 0:00:00]} 16. Be3 {[%clk 0:00:00]}  h6 {[%clk 0:00:00]} 17. Ng3 {[%clk 0:00:00]}  Qf8 {[%clk 0:00:00]} 18. Nh4 {[%clk 0:00:00]}  g6 {[%clk 0:00:00]} 19. Nh5 {[%clk 0:00:00]}  gxh5 {[%clk 0:00:00]} 20. Qxh5 {[%clk 0:00:00]}  Bxe3 {[%clk 0:00:00]} 21. Rxe3 {[%clk 0:00:00]}  axb3 {[%clk 0:00:00]} 22. Rg3+ {[%clk 0:00:00]}  Kh7 {[%clk 0:00:00]} 23. Ng6 {[%clk 0:00:00]}  fxg6 {[%clk 0:00:00]} 24. Qxg6+ {[%clk 0:00:00]}  Kh8 {[%clk 0:00:00]} 25. Qxe6 {[%clk 0:00:00]}  bxc2 {[%clk 0:00:00]} 26. Kh2 {[%clk 0:00:00]}  Rd6 {[%clk 0:00:00]} 27. Qb3 {[%clk 0:00:00]}  Qxf2 {[%clk 0:00:00]} 28. Rc1 {[%clk 0:00:00]}  Qf4 {[%clk 0:00:00]} 29. Rxc2 {[%clk 0:00:00]}  Rg6 {[%clk 0:00:00]} 30. c4 {[%clk 0:00:00]}  Qxg3+ {[%clk 0:00:00]} 31. Qxg3 {[%clk 0:00:00]}  Rxg3 {[%clk 0:00:00]} 32. Kxg3 {[%clk 0:00:00]}  Nd4 {[%clk 0:00:00]} 33. Rf2 {[%clk 0:00:00]}  Kg7 {[%clk 0:00:00]} 34. Kh4 {[%clk 0:00:00]}  Rf8 {[%clk 0:00:00]} 35. Rb2 {[%clk 0:00:00]}  Rf4+ {[%clk 0:00:00]} 36. g4 {[%clk 0:00:00]}  Rxe4 {[%clk 0:00:00]} 37. c5 {[%clk 0:00:00]}  Nd7 {[%clk 0:00:00]} 38. Rxb7 {[%clk 0:00:00]}  Ne6 {[%clk 0:00:00]} 39. c6 {[%clk 0:00:00]}  Nf6 {[%clk 0:00:00]} 40. a4 {[%clk 0:00:00]}  h5 {[%clk 0:00:00]} 41. a5 {[%clk 0:00:00]}  hxg4 {[%clk 0:00:00]} 42. hxg4 {[%clk 0:00:00]}  Rxg4+ {[%clk 0:00:00]} 43. Kh3 {[%clk 0:00:00]}  Nf4+ {[%clk 0:00:00]} 44. Kh2 {[%clk 0:00:00]}  Rg2+ {[%clk 0:00:00]} 45. Kh1 {[%clk 0:00:00]}  Ra2 {[%clk 0:00:00]} 46. Rxc7+ {[%clk 0:00:00]}  Kg6 {[%clk 0:00:00]} 47. Ra7 {[%clk 0:00:00]}  N6d5 {[%clk 0:00:00]} 48. c7 {[%clk 0:00:00]}  Nxc7 {[%clk 0:00:00]} 49. Rxc7 {[%clk 0:00:00]}  Rxa5 {[%clk 0:00:00]} 50. Rc6+ {[%clk 0:00:00]}  Kf5 {[%clk 0:00:00]} 51. Rc2 {[%clk 0:00:00]}  Ra3 {[%clk 0:00:00]} 52. Kh2 {[%clk 0:00:00]}  Rh3+ {[%clk 0:00:00]} 53. Kg1 {[%clk 0:00:00]}  Rg3+ {[%clk 0:00:00]} 54. Kh2 {[%clk 0:00:00]}  Rg2+ {[%clk 0:00:00]} 55. Rxg2 {[%clk 0:00:00]}  Nxg2 {[%clk 0:00:00]} 56. Kxg2 {[%clk 0:00:00]}  Ke4 {[%clk 0:00:00]} 57. Kf2 {[%clk 0:00:00]}  Kd3 {[%clk 0:00:00]} 58. Kf3 {[%clk 0:00:00]}  e4+ {[%clk 0:00:00]} 59. Kf2 {[%clk 0:00:00]}  Kd2 {[%clk 0:00:00]} 60. Kg2 {[%clk 0:00:00]}  e3 {[%clk 0:00:00]} 61. Kf3 {[%clk 0:00:00]}  e2 {[%clk 0:00:00]} 62. Kg2 {[%clk 0:00:00]}  e1=Q {[%clk 0:00:00]} 63. Kh3 {[%clk 0:00:00]}  Qg1 {[%clk 0:00:00]} 64. Kh4 {[%clk 0:00:00]}  Ke3 {[%clk 0:00:00]} 65. Kh5 {[%clk 0:00:00]}  Kf4 {[%clk 0:00:00]} 66. Kh4 {[%clk 0:00:00]}  Qh1# {[%clk 0:00:00]} 0-1


[Site "https://www.chess.com"]

[Event "Titled Tuesday Blitz August 16 Late 2022"]
[White "Blanco Ronquillo, Humberto L."]
[Black "Bogaudinov, Rushan"]
[WhiteFideId "3504239"]
[BlackFideId "4129288"]
[WhiteElo "2425"]
[BlackElo "2040"]
[Result "0-1"]
[Round "01"]
[TimeControl "180+1"]
[Date "2022.08.18"]
[WhiteClock "0:00:00"]
[BlackClock "0:00:00"]

1. d4 {[%clk 0:00:00]}  d5 {[%clk 0:00:00]} 2. c4 {[%clk 0:00:00]}  e6 {[%clk 0:00:00]} 3. Nc3 {[%clk 0:00:00]}  Nf6 {[%clk 0:00:00]} 4. Nf3 {[%clk 0:00:00]}  Be7 {[%clk 0:00:00]} 5. Bf4 {[%clk 0:00:00]}  O-O {[%clk 0:00:00]} 6. e3 {[%clk 0:00:00]}  a6 {[%clk 0:00:00]} 7. c5 {[%clk 0:00:00]}  Nc6 {[%clk 0:00:00]} 8. Bd3 {[%clk 0:00:00]}  Re8 {[%clk 0:00:00]} 9. O-O {[%clk 0:00:00]}  h6 {[%clk 0:00:00]} 10. h3 {[%clk 0:00:00]}  b6 {[%clk 0:00:00]} 11. cxb6 {[%clk 0:00:00]}  cxb6 {[%clk 0:00:00]} 12. Rc1 {[%clk 0:00:00]}  Bb7 {[%clk 0:00:00]} 13. Qe2 {[%clk 0:00:00]}  b5 {[%clk 0:00:00]} 14. Nb1 {[%clk 0:00:00]}  Rc8 {[%clk 0:00:00]} 15. Nbd2 {[%clk 0:00:00]}  Na5 {[%clk 0:00:00]} 16. Ne5 {[%clk 0:00:00]}  Qb6 {[%clk 0:00:00]} 17. b3 {[%clk 0:00:00]}  Nc6 {[%clk 0:00:00]} 18. Ndf3 {[%clk 0:00:00]}  Ba3 {[%clk 0:00:00]} 19. Rcd1 {[%clk 0:00:00]}  Nb4 {[%clk 0:00:00]} 20. Bb1 {[%clk 0:00:00]}  Ne4 {[%clk 0:00:00]} 21. Nd2 {[%clk 0:00:00]}  Nc3 {[%clk 0:00:00]} 22. Qg4 {[%clk 0:00:00]}  Kf8 {[%clk 0:00:00]} 23. Qh5 {[%clk 0:00:00]}  Rc7 {[%clk 0:00:00]} 24. Nd3 {[%clk 0:00:00]}  Nxd1 {[%clk 0:00:00]} 25. Rxd1 {[%clk 0:00:00]}  Nxd3 {[%clk 0:00:00]} 26. Bxd3 {[%clk 0:00:00]}  Rc1 {[%clk 0:00:00]} 27. Rxc1 {[%clk 0:00:00]}  Bxc1 {[%clk 0:00:00]} 28. Nf3 {[%clk 0:00:00]}  f6 {[%clk 0:00:00]} 0-1


[Site "https://www.chess.com"]

[Event "Titled Tuesday Blitz August 16 Late 2022"]
[White "Bongo Akanga Ndjila, Barthelemy"]
[Black "Riff, Vincent"]
[WhiteFideId "10609431"]
[BlackFideId "617776"]
[WhiteElo "1768"]
[BlackElo "2369"]
[Result "0-1"]
[Round "01"]
[TimeControl "180+1"]
[Date "2022.08.18"]
[WhiteClock "0:00:00"]
[BlackClock "0:00:00"]

1. d4 {[%clk 0:00:00]}  Nf6 {[%clk 0:00:00]} 2. c4 {[%clk 0:00:00]}  e6 {[%clk 0:00:00]} 3. Nc3 {[%clk 0:00:00]}  Bb4 {[%clk 0:00:00]} 4. f3 {[%clk 0:00:00]}  d5 {[%clk 0:00:00]} 5. a3 {[%clk 0:00:00]}  Be7 {[%clk 0:00:00]} 6. cxd5 {[%clk 0:00:00]}  exd5 {[%clk 0:00:00]} 7. e3 {[%clk 0:00:00]}  c5 {[%clk 0:00:00]} 8. Bd3 {[%clk 0:00:00]}  cxd4 {[%clk 0:00:00]} 9. exd4 {[%clk 0:00:00]}  Nc6 {[%clk 0:00:00]} 10. Nge2 {[%clk 0:00:00]}  O-O {[%clk 0:00:00]} 11. O-O {[%clk 0:00:00]}  h6 {[%clk 0:00:00]} 12. b4 {[%clk 0:00:00]}  a6 {[%clk 0:00:00]} 13. Ra2 {[%clk 0:00:00]}  b5 {[%clk 0:00:00]} 14. Bb1 {[%clk 0:00:00]}  Be6 {[%clk 0:00:00]} 15. Ng3 {[%clk 0:00:00]}  Rc8 {[%clk 0:00:00]} 16. Nce2 {[%clk 0:00:00]}  a5 {[%clk 0:00:00]} 17. bxa5 {[%clk 0:00:00]}  Qxa5 {[%clk 0:00:00]} 18. Nf4 {[%clk 0:00:00]}  Nxd4 {[%clk 0:00:00]} 19. Qxd4 {[%clk 0:00:00]}  Bc5 {[%clk 0:00:00]} 20. Nxe6 {[%clk 0:00:00]}  fxe6 {[%clk 0:00:00]} 21. Qxc5 {[%clk 0:00:00]}  Rxc5 {[%clk 0:00:00]} 22. Bd2 {[%clk 0:00:00]}  Qa4 {[%clk 0:00:00]} 23. Bb4 {[%clk 0:00:00]}  Rfc8 {[%clk 0:00:00]} 24. Bxc5 {[%clk 0:00:00]}  Rxc5 {[%clk 0:00:00]} 25. Bg6 {[%clk 0:00:00]}  Qd4+ {[%clk 0:00:00]} 26. Kh1 {[%clk 0:00:00]}  Nd7 {[%clk 0:00:00]} 27. Rb1 {[%clk 0:00:00]}  Ne5 {[%clk 0:00:00]} 28. Be8 {[%clk 0:00:00]}  Kf8 {[%clk 0:00:00]} 29. Bh5 {[%clk 0:00:00]}  Ke7 {[%clk 0:00:00]} 30. h3 {[%clk 0:00:00]}  g6 {[%clk 0:00:00]} 31. Bg4 {[%clk 0:00:00]}  h5 {[%clk 0:00:00]} 32. f4 {[%clk 0:00:00]}  Qxf4 {[%clk 0:00:00]} 33. Rf1 {[%clk 0:00:00]}  Rc1 {[%clk 0:00:00]} 34. Bf3 {[%clk 0:00:00]}  Nxf3 {[%clk 0:00:00]} 35. gxf3 {[%clk 0:00:00]}  Qxf3+ {[%clk 0:00:00]} 0-1


[Site "https://www.chess.com"]

[Event "Titled Tuesday Blitz August 16 Late 2022"]
[White "Boros, Denes"]
[Black "Krzywda, Andrzej"]
[WhiteFideId "722340"]
[BlackFideId "1114565"]
[WhiteElo "2464"]
[BlackElo "2098"]
[Result "1-0"]
[Round "01"]
[TimeControl "180+1"]
[Date "2022.08.18"]
[WhiteClock "0:00:00"]
[BlackClock "0:00:00"]

1. e4 {[%clk 0:00:00]}  c5 {[%clk 0:00:00]} 2. b3 {[%clk 0:00:00]}  b6 {[%clk 0:00:00]} 3. d4 {[%clk 0:00:00]}  cxd4 {[%clk 0:00:00]} 4. Qxd4 {[%clk 0:00:00]}  Bb7 {[%clk 0:00:00]} 5. Nc3 {[%clk 0:00:00]}  e6 {[%clk 0:00:00]} 6. Bb2 {[%clk 0:00:00]}  Nf6 {[%clk 0:00:00]} 7. Qe3 {[%clk 0:00:00]}  Bc5 {[%clk 0:00:00]} 8. Qe2 {[%clk 0:00:00]}  Nc6 {[%clk 0:00:00]} 9. O-O-O {[%clk 0:00:00]}  Nd4 {[%clk 0:00:00]} 10. Qe1 {[%clk 0:00:00]}  Ng4 {[%clk 0:00:00]} 11. Nh3 {[%clk 0:00:00]}  Rc8 {[%clk 0:00:00]} 12. Kb1 {[%clk 0:00:00]}  Qc7 {[%clk 0:00:00]} 13. Bd3 {[%clk 0:00:00]}  Ne5 {[%clk 0:00:00]} 14. Na4 {[%clk 0:00:00]}  Nxd3 {[%clk 0:00:00]} 15. cxd3 {[%clk 0:00:00]}  Nc2 {[%clk 0:00:00]} 16. Kxc2 {[%clk 0:00:00]}  Bxf2+ {[%clk 0:00:00]} 17. Qc3 {[%clk 0:00:00]}  Qb8 {[%clk 0:00:00]} 18. Nxf2 {[%clk 0:00:00]}  Rxc3+ {[%clk 0:00:00]} 19. Nxc3 {[%clk 0:00:00]}  O-O {[%clk 0:00:00]} 20. g3 {[%clk 0:00:00]}  f5 {[%clk 0:00:00]} 21. Rhe1 {[%clk 0:00:00]}  fxe4 {[%clk 0:00:00]} 22. Nfxe4 {[%clk 0:00:00]}  Bxe4 {[%clk 0:00:00]} 23. dxe4 {[%clk 0:00:00]}  Rf2+ {[%clk 0:00:00]} 24. Re2 {[%clk 0:00:00]}  Qf8 {[%clk 0:00:00]} 25. Rxf2 {[%clk 0:00:00]}  Qxf2+ {[%clk 0:00:00]} 26. Rd2 {[%clk 0:00:00]}  Qe3 {[%clk 0:00:00]} 27. Rxd7 {[%clk 0:00:00]}  h5 {[%clk 0:00:00]} 28. Rxg7+ {[%clk 0:00:00]}  Kh8 {[%clk 0:00:00]} 29. Rxa7 {[%clk 0:00:00]}  Qf2+ {[%clk 0:00:00]} 30. Kb1 {[%clk 0:00:00]}  Kg8 {[%clk 0:00:00]} 31. Ra8+ {[%clk 0:00:00]}  Kf7 {[%clk 0:00:00]} 32. Rd8 {[%clk 0:00:00]}  Ke7 {[%clk 0:00:00]} 33. Rd3 {[%clk 0:00:00]}  Qxh2 {[%clk 0:00:00]} 34. Bc1 {[%clk 0:00:00]}  Qg2 {[%clk 0:00:00]} 35. a4 {[%clk 0:00:00]}  Qf1 {[%clk 0:00:00]} 36. Kc2 {[%clk 0:00:00]}  Qg2+ {[%clk 0:00:00]} 37. Bd2 {[%clk 0:00:00]}  Qe2 {[%clk 0:00:00]} 38. b4 {[%clk 0:00:00]}  Qf1 {[%clk 0:00:00]} 39. Bg5+ {[%clk 0:00:00]}  Ke8 {[%clk 0:00:00]} 40. Nb5 {[%clk 0:00:00]}  Kf7 {[%clk 0:00:00]} 41. Bf4 {[%clk 0:00:00]}  Kg6 {[%clk 0:00:00]} 42. Nc3 {[%clk 0:00:00]}  h4 {[%clk 0:00:00]} 43. gxh4 {[%clk 0:00:00]}  Qxf4 {[%clk 0:00:00]} 44. Kb3 {[%clk 0:00:00]}  Qc7 {[%clk 0:00:00]} 45. Rf3 {[%clk 0:00:00]}  Qg7 {[%clk 0:00:00]} 46. Rg3+ {[%clk 0:00:00]}  Kh7 {[%clk 0:00:00]} 47. Rxg7+ {[%clk 0:00:00]}  Kxg7 {[%clk 0:00:00]} 48. a5 {[%clk 0:00:00]}  Kh6 {[%clk 0:00:00]} 49. axb6 {[%clk 0:00:00]} 1-0


[Site "https://www.chess.com"]

[Event "Titled Tuesday Blitz August 16 Late 2022"]
[White "Bortnyk, Olexandr"]
[Black "Martic, Ivan"]
[WhiteFideId "14120828"]
[BlackFideId "929301"]
[WhiteElo "2723"]
[BlackElo "2355"]
[Result "1-0"]
[Round "01"]
[TimeControl "180+1"]
[Date "2022.08.16"]
[WhiteClock "0:02:33"]
[BlackClock "0:01:50"]

1. d4 {[%clk 0:03:00]}  Nf6 {[%clk 0:02:59]} 2. Nc3 {[%clk 0:03:01]}  d5 {[%clk 0:02:54]} 3. Bf4 {[%clk 0:03:00]}  a6 {[%clk 0:02:53]} 4. e3 {[%clk 0:03:01]}  e6 {[%clk 0:02:51]} 5. Nf3 {[%clk 0:03:00]}  c5 {[%clk 0:02:50]} 6. a3 {[%clk 0:03:01]}  Nc6 {[%clk 0:02:50]} 7. Bd3 {[%clk 0:03:01]}  Bd6 {[%clk 0:02:44]} 8. dxc5 {[%clk 0:03:01]}  Bxc5 {[%clk 0:02:43]} 9. O-O {[%clk 0:03:01]}  O-O {[%clk 0:02:40]} 10. Qe2 {[%clk 0:02:48]}  Qe7 {[%clk 0:02:31]} 11. e4 {[%clk 0:02:47]}  dxe4 {[%clk 0:02:26]} 12. Nxe4 {[%clk 0:02:48]}  Nxe4 {[%clk 0:02:26]} 13. Qxe4 {[%clk 0:02:46]}  f5 {[%clk 0:02:24]} 14. Qe2 {[%clk 0:02:44]}  Bd7 {[%clk 0:02:06]} 15. Bc4 {[%clk 0:02:39]}  Rae8 {[%clk 0:02:02]} 16. Rfe1 {[%clk 0:02:37]}  Nd4 {[%clk 0:02:00]} 17. Nxd4 {[%clk 0:02:36]}  Bxd4 {[%clk 0:02:01]} 18. c3 {[%clk 0:02:35]}  Bf6 {[%clk 0:01:55]} 19. Rad1 {[%clk 0:02:34]}  Kh8 {[%clk 0:01:52]} 20. Bd6 {[%clk 0:02:33]}  Qf7 {[%clk 0:01:50]} 21. Bxf8 {[%clk 0:02:33]}  Qxf8 {[%clk 0:01:50]} 22. Rxd7 {[%clk 0:02:33]} 1-0


[Site "https://www.chess.com"]

[Event "Titled Tuesday Blitz August 16 Late 2022"]
[White "Boruchovsky, Avital"]
[Black "Kolb, Tobias"]
[WhiteFideId "2800055"]
[BlackFideId "12992321"]
[WhiteElo "2466"]
[BlackElo "2224"]
[Result "1-0"]
[Round "01"]
[TimeControl "180+1"]
[Date "2022.08.18"]
[WhiteClock "0:00:00"]
[BlackClock "0:00:00"]

1. d4 {[%clk 0:00:00]}  Nf6 {[%clk 0:00:00]} 2. c4 {[%clk 0:00:00]}  e6 {[%clk 0:00:00]} 3. Nc3 {[%clk 0:00:00]}  Bb4 {[%clk 0:00:00]} 4. Qc2 {[%clk 0:00:00]}  d5 {[%clk 0:00:00]} 5. e3 {[%clk 0:00:00]}  O-O {[%clk 0:00:00]} 6. Nf3 {[%clk 0:00:00]}  Nbd7 {[%clk 0:00:00]} 7. Bd2 {[%clk 0:00:00]}  b6 {[%clk 0:00:00]} 8. Bd3 {[%clk 0:00:00]}  Bb7 {[%clk 0:00:00]} 9. cxd5 {[%clk 0:00:00]}  exd5 {[%clk 0:00:00]} 10. O-O {[%clk 0:00:00]}  a6 {[%clk 0:00:00]} 11. Ne5 {[%clk 0:00:00]}  Bd6 {[%clk 0:00:00]} 12. f4 {[%clk 0:00:00]}  c5 {[%clk 0:00:00]} 13. Be1 {[%clk 0:00:00]}  b5 {[%clk 0:00:00]} 14. Bh4 {[%clk 0:00:00]}  cxd4 {[%clk 0:00:00]} 15. exd4 {[%clk 0:00:00]}  Qb6 {[%clk 0:00:00]} 16. Nxd7 {[%clk 0:00:00]}  Nxd7 {[%clk 0:00:00]} 17. Bxh7+ {[%clk 0:00:00]}  Kh8 {[%clk 0:00:00]} 18. Qf5 {[%clk 0:00:00]}  Qxd4+ {[%clk 0:00:00]} 19. Kh1 {[%clk 0:00:00]}  Nf6 {[%clk 0:00:00]} 20. Rad1 {[%clk 0:00:00]}  Qb6 {[%clk 0:00:00]} 21. Bxf6 {[%clk 0:00:00]}  gxf6 {[%clk 0:00:00]} 22. Qxf6+ {[%clk 0:00:00]}  Kxh7 {[%clk 0:00:00]} 23. Rd3 {[%clk 0:00:00]}  Bc8 {[%clk 0:00:00]} 24. Rg3 {[%clk 0:00:00]} 1-0


[Site "https://www.chess.com"]

[Event "Titled Tuesday Blitz August 16 Late 2022"]
[White "Chernomordik, Pavel"]
[Black "Rustemov, Alexander"]
[WhiteFideId "2804530"]
[BlackFideId "4119002"]
[WhiteElo "2217"]
[BlackElo "2525"]
[Result "0-1"]
[Round "01"]
[TimeControl "180+1"]
[Date "2022.08.18"]
[WhiteClock "0:00:00"]
[BlackClock "0:00:00"]

1. e4 {[%clk 0:00:00]}  e6 {[%clk 0:00:00]} 2. Nc3 {[%clk 0:00:00]}  d5 {[%clk 0:00:00]} 3. d4 {[%clk 0:00:00]}  Bb4 {[%clk 0:00:00]} 4. Ne2 {[%clk 0:00:00]}  Nf6 {[%clk 0:00:00]} 5. e5 {[%clk 0:00:00]}  Nfd7 {[%clk 0:00:00]} 6. f4 {[%clk 0:00:00]}  b6 {[%clk 0:00:00]} 7. a3 {[%clk 0:00:00]}  Be7 {[%clk 0:00:00]} 8. Ng3 {[%clk 0:00:00]}  c5 {[%clk 0:00:00]} 9. Nb5 {[%clk 0:00:00]}  Nc6 {[%clk 0:00:00]} 10. c3 {[%clk 0:00:00]}  O-O {[%clk 0:00:00]} 11. a4 {[%clk 0:00:00]}  f6 {[%clk 0:00:00]} 12. Be2 {[%clk 0:00:00]}  a6 {[%clk 0:00:00]} 13. Na3 {[%clk 0:00:00]}  cxd4 {[%clk 0:00:00]} 14. cxd4 {[%clk 0:00:00]}  fxe5 {[%clk 0:00:00]} 15. fxe5 {[%clk 0:00:00]}  Bb4+ {[%clk 0:00:00]} 16. Bd2 {[%clk 0:00:00]}  Qh4 {[%clk 0:00:00]} 17. Bxb4 {[%clk 0:00:00]}  Nxb4 {[%clk 0:00:00]} 18. Bf3 {[%clk 0:00:00]}  a5 {[%clk 0:00:00]} 19. O-O {[%clk 0:00:00]}  Ba6 {[%clk 0:00:00]} 20. Nb5 {[%clk 0:00:00]}  Bxb5 {[%clk 0:00:00]} 21. axb5 {[%clk 0:00:00]}  Rf4 {[%clk 0:00:00]} 22. Ne2 {[%clk 0:00:00]}  Rf7 {[%clk 0:00:00]} 23. Rc1 {[%clk 0:00:00]}  Nf8 {[%clk 0:00:00]} 24. g3 {[%clk 0:00:00]}  Qh6 {[%clk 0:00:00]} 25. Rc3 {[%clk 0:00:00]}  g5 {[%clk 0:00:00]} 26. Bg4 {[%clk 0:00:00]}  Rxf1+ {[%clk 0:00:00]} 27. Qxf1 {[%clk 0:00:00]}  Ra7 {[%clk 0:00:00]} 28. Rc8 {[%clk 0:00:00]}  Rf7 {[%clk 0:00:00]} 29. Qc1 {[%clk 0:00:00]}  Qg6 {[%clk 0:00:00]} 30. Qd1 {[%clk 0:00:00]}  h5 {[%clk 0:00:00]} 31. Bh3 {[%clk 0:00:00]}  Nd3 {[%clk 0:00:00]} 32. Qc2 {[%clk 0:00:00]}  Qe4 {[%clk 0:00:00]} 33. Qd2 {[%clk 0:00:00]}  g4 {[%clk 0:00:00]} 34. Qg5+ {[%clk 0:00:00]}  Rg7 {[%clk 0:00:00]} 35. Rxf8+ {[%clk 0:00:00]}  Kxf8 {[%clk 0:00:00]} 36. Qd8+ {[%clk 0:00:00]}  Kf7 {[%clk 0:00:00]} 37. Qd7+ {[%clk 0:00:00]}  Kg8 {[%clk 0:00:00]} 38. Qxe6+ {[%clk 0:00:00]}  Kh7 {[%clk 0:00:00]} 39. Bf1 {[%clk 0:00:00]}  Qe3+ {[%clk 0:00:00]} 40. Kh1 {[%clk 0:00:00]}  Qf3+ {[%clk 0:00:00]} 41. Bg2 {[%clk 0:00:00]}  Qxe2 {[%clk 0:00:00]} 42. Qf5+ {[%clk 0:00:00]}  Kg8 {[%clk 0:00:00]} 43. Qe6+ {[%clk 0:00:00]}  Rf7 {[%clk 0:00:00]} 0-1


[Site "https://www.chess.com"]